[Event "Titled Tuesday Blitz August 22 Early 2023"]
[White "Rosen, Eric"]
[Black "Balla, Tamas-Kristof"]
[WhiteFideId "2032562"]
[BlackFideId "1208497"]
[WhiteElo "2581"]
[BlackElo "2449"]
[Result "1-0"]
[Round "6"]
[TimeControl "180+1"]
[Date "2023.08.22"]
[WhiteClock "0:00:08"]
[BlackClock "0:00:07"]
[Board "113"]

1. d4 {[%clk 0:03:00]}  d5 {[%clk 0:03:00]} 2. Bf4 {[%clk 0:02:56]}  Nf6 {[%clk 0:02:59]} 3. e3 {[%clk 0:02:56]}  e6 {[%clk 0:03:00]} 4. Nf3 {[%clk 0:02:57]}  Bd6 {[%clk 0:03:00]} 5. Ne5 {[%clk 0:02:57]}  O-O {[%clk 0:02:59]} 6. Nd2 {[%clk 0:02:57]}  b6 {[%clk 0:02:59]} 7. h4 {[%clk 0:02:57]}  c5 {[%clk 0:02:56]} 8. c3 {[%clk 0:02:56]}  h6 {[%clk 0:02:48]} 9. Qf3 {[%clk 0:02:50]}  Bb7 {[%clk 0:02:09]} 10. Bd3 {[%clk 0:02:49]}  Nc6 {[%clk 0:01:37]} 11. g4 {[%clk 0:02:38]}  cxd4 {[%clk 0:01:14]} 12. exd4 {[%clk 0:02:31]}  Ne4 {[%clk 0:01:08]} 13. Nxe4 {[%clk 0:02:24]}  Nxe5 {[%clk 0:01:07]} 14. dxe5 {[%clk 0:02:13]}  dxe4 {[%clk 0:01:08]} 15. Bxe4 {[%clk 0:02:14]}  Bxe4 {[%clk 0:01:04]} 16. Qxe4 {[%clk 0:02:15]}  Be7 {[%clk 0:00:31]} 17. Rd1 {[%clk 0:01:41]}  Qc7 {[%clk 0:00:28]} 18. Bg3 {[%clk 0:01:40]}  Rad8 {[%clk 0:00:27]} 19. O-O {[%clk 0:01:40]}  Rxd1 {[%clk 0:00:27]} 20. Rxd1 {[%clk 0:01:41]}  Rd8 {[%clk 0:00:28]} 21. Rd4 {[%clk 0:01:27]}  Bc5 {[%clk 0:00:22]} 22. Rd3 {[%clk 0:01:26]}  Rxd3 {[%clk 0:00:14]} 23. Qxd3 {[%clk 0:01:27]}  Qc6 {[%clk 0:00:15]} 24. b3 {[%clk 0:01:13]}  a5 {[%clk 0:00:13]} 25. a4 {[%clk 0:01:12]}  Be7 {[%clk 0:00:10]} 26. h5 {[%clk 0:01:06]}  Qc5 {[%clk 0:00:08]} 27. Qc4 {[%clk 0:00:51]}  Qa3 {[%clk 0:00:08]} 28. Bf4 {[%clk 0:00:38]}  Qa1+ {[%clk 0:00:07]} 29. Kg2 {[%clk 0:00:38]}  Qd1 {[%clk 0:00:06]} 30. Be3 {[%clk 0:00:36]}  Bc5 {[%clk 0:00:01]} 31. Bxc5 {[%clk 0:00:11]}  bxc5 {[%clk 0:00:02]} 32. Kg3 {[%clk 0:00:11]}  Qc1 {[%clk 0:00:02]} 33. Qxc5 {[%clk 0:00:07]}  Qg1+ {[%clk 0:00:02]} 34. Kf3 {[%clk 0:00:07]}  Qh1+ {[%clk 0:00:03]} 35. Ke3 {[%clk 0:00:04]}  Qe1+ {[%clk 0:00:04]} 36. Kd3 {[%clk 0:00:04]}  Qd1+ {[%clk 0:00:04]} 37. Kc4 {[%clk 0:00:05]}  Qd7 {[%clk 0:00:03]} 38. Qd4 {[%clk 0:00:03]}  Qc6+ {[%clk 0:00:03]} 39. Kd3 {[%clk 0:00:03]}  Qf3+ {[%clk 0:00:03]} 40. Kc4 {[%clk 0:00:03]}  Qc6+ {[%clk 0:00:03]} 41. Qc5 {[%clk 0:00:03]}  Qf3 {[%clk 0:00:03]} 42. Kb5 {[%clk 0:00:03]}  Qxg4 {[%clk 0:00:03]} 43. Kxa5 {[%clk 0:00:04]}  Qxh5 {[%clk 0:00:04]} 44. b4 {[%clk 0:00:04]}  Qf3 {[%clk 0:00:02]} 45. b5 {[%clk 0:00:04]}  h5 {[%clk 0:00:03]} 46. b6 {[%clk 0:00:04]}  Qa8+ {[%clk 0:00:02]} 47. Kb5 {[%clk 0:00:04]}  h4 {[%clk 0:00:03]} 48. Qc6 {[%clk 0:00:03]}  Qb8 {[%clk 0:00:03]} 49. Qc7 {[%clk 0:00:03]}  Qe8+ {[%clk 0:00:03]} 50. Ka6 {[%clk 0:00:03]}  h3 {[%clk 0:00:03]} 51. b7 {[%clk 0:00:03]}  Qxa4+ {[%clk 0:00:03]} 52. Kb6 {[%clk 0:00:02]}  Qb3+ {[%clk 0:00:04]} 53. Kc6 {[%clk 0:00:03]}  Qxc3+ {[%clk 0:00:04]} 54. Kd7 {[%clk 0:00:03]}  Qd4+ {[%clk 0:00:04]} 55. Ke8 {[%clk 0:00:03]}  Qa4+ {[%clk 0:00:04]} 56. Qd7 {[%clk 0:00:02]}  Qb4 {[%clk 0:00:04]} 57. Qxf7+ {[%clk 0:00:02]}  Kh8 {[%clk 0:00:04]} 58. Qh5+ {[%clk 0:00:02]}  Kg8 {[%clk 0:00:04]} 59. Qf7+ {[%clk 0:00:03]}  Kh8 {[%clk 0:00:04]} 60. Qf8+ {[%clk 0:00:03]}  Qxf8+ {[%clk 0:00:04]} 61. Kxf8 {[%clk 0:00:04]}  h2 {[%clk 0:00:04]} 62. b8=Q {[%clk 0:00:04]}  h1=Q {[%clk 0:00:05]} 63. Kf7+ {[%clk 0:00:05]}  Kh7 {[%clk 0:00:05]} 64. Qg8+ {[%clk 0:00:06]}  Kh6 {[%clk 0:00:06]} 65. Qh8+ {[%clk 0:00:07]}  Kg5 {[%clk 0:00:06]} 66. Qxh1 {[%clk 0:00:08]}  Kf5 {[%clk 0:00:07]} 67. Kxg7 {[%clk 0:00:08]}  Kxe5 {[%clk 0:00:07]} 68. Qe1+ {[%clk 0:00:08]}  Kd5 {[%clk 0:00:07]} 69. f4 {[%clk 0:00:08]} 1-0


[Site "https://www.chess.com"]

[Event "Titled Tuesday Blitz August 22 Early 2023"]
[White "Herzog2012"]
[Black "Ibadov, Dashgyn"]
[BlackFideId "24107514"]
[WhiteElo "2444"]
[BlackElo "2578"]
[Result "0-1"]
[Round "6"]
[TimeControl "180+1"]
[Date "2023.08.22"]
[WhiteClock "0:00:00"]
[BlackClock "0:00:04"]
[Board "114"]

1. e4 {[%clk 0:03:00]}  e5 {[%clk 0:02:59]} 2. Nc3 {[%clk 0:03:00]}  Nf6 {[%clk 0:02:59]} 3. g3 {[%clk 0:03:01]}  d5 {[%clk 0:02:58]} 4. exd5 {[%clk 0:03:02]}  c6 {[%clk 0:02:58]} 5. d4 {[%clk 0:03:00]}  exd4 {[%clk 0:02:50]} 6. Qxd4 {[%clk 0:03:01]}  cxd5 {[%clk 0:02:46]} 7. Bg5 {[%clk 0:03:01]}  Be7 {[%clk 0:02:38]} 8. O-O-O {[%clk 0:02:59]}  Nc6 {[%clk 0:02:38]} 9. Bb5 {[%clk 0:02:59]}  O-O {[%clk 0:02:36]} 10. Qa4 {[%clk 0:02:58]}  Be6 {[%clk 0:02:24]} 11. Nf3 {[%clk 0:02:44]}  a6 {[%clk 0:02:23]} 12. Bxc6 {[%clk 0:02:42]}  bxc6 {[%clk 0:02:24]} 13. Qxc6 {[%clk 0:02:42]}  Qb8 {[%clk 0:02:14]} 14. Bf4 {[%clk 0:02:28]}  Qa7 {[%clk 0:02:00]} 15. Be3 {[%clk 0:02:25]}  Qb8 {[%clk 0:01:59]} 16. Bf4 {[%clk 0:02:23]}  Qd8 {[%clk 0:01:59]} 17. Nd4 {[%clk 0:02:10]}  Rc8 {[%clk 0:01:43]} 18. Nxe6 {[%clk 0:02:03]}  fxe6 {[%clk 0:01:36]} 19. Qxe6+ {[%clk 0:02:02]}  Kh8 {[%clk 0:01:37]} 20. Nxd5 {[%clk 0:02:02]}  Nxd5 {[%clk 0:00:33]} 21. Rxd5 {[%clk 0:01:58]}  Qe8 {[%clk 0:00:34]} 22. Re1 {[%clk 0:01:53]}  Qa4 {[%clk 0:00:34]} 23. Rd2 {[%clk 0:01:36]}  Bb4 {[%clk 0:00:34]} 24. Ree2 {[%clk 0:00:36]}  Bxd2+ {[%clk 0:00:21]} 25. Rxd2 {[%clk 0:00:35]}  Rfe8 {[%clk 0:00:17]} 26. Qb3 {[%clk 0:00:33]}  Re1+ {[%clk 0:00:11]} 27. Rd1 {[%clk 0:00:31]}  Rxd1+ {[%clk 0:00:11]} 28. Kxd1 {[%clk 0:00:32]}  Qe4 {[%clk 0:00:11]} 29. Qd3 {[%clk 0:00:27]}  Qh1+ {[%clk 0:00:09]} 30. Kd2 {[%clk 0:00:26]}  Re8 {[%clk 0:00:09]} 31. Be3 {[%clk 0:00:24]}  Qxh2 {[%clk 0:00:09]} 32. Qxa6 {[%clk 0:00:23]}  Qh1 {[%clk 0:00:09]} 33. Qd3 {[%clk 0:00:22]}  Qb1 {[%clk 0:00:08]} 34. Bd4 {[%clk 0:00:10]}  Qxa2 {[%clk 0:00:05]} 35. Qc3 {[%clk 0:00:07]}  Rg8 {[%clk 0:00:04]} 36. b3 {[%clk 0:00:04]}  Qa8 {[%clk 0:00:04]} 37. Qe3 {[%clk 0:00:04]}  Qd5 {[%clk 0:00:04]} 38. c4 {[%clk 0:00:04]}  Qb7 {[%clk 0:00:04]} 39. Kc3 {[%clk 0:00:04]}  Rb8 {[%clk 0:00:04]} 40. Kc2 {[%clk 0:00:04]}  Qa6 {[%clk 0:00:04]} 41. Bxg7+ {[%clk 0:00:03]}  Kg8 {[%clk 0:00:05]} 42. Bb2 {[%clk 0:00:02]}  Qg6+ {[%clk 0:00:04]} 43. Kc1 {[%clk 0:00:02]}  Re8 {[%clk 0:00:03]} 44. Qd4 {[%clk 0:00:03]}  Re1+ {[%clk 0:00:02]} 45. Kd2 {[%clk 0:00:02]}  Re7 {[%clk 0:00:02]} 46. Qd8+ {[%clk 0:00:02]}  Kf7 {[%clk 0:00:02]} 47. Qd4 {[%clk 0:00:02]}  Ke8 {[%clk 0:00:02]} 48. Qc3 {[%clk 0:00:01]}  Rd7+ {[%clk 0:00:03]} 49. Ke1 {[%clk 0:00:01]}  Qb1+ {[%clk 0:00:04]} 50. Ke2 {[%clk 0:00:00]}  Qd1+ {[%clk 0:00:04]} 0-1


[Site "https://www.chess.com"]

[Event "Titled Tuesday Blitz August 22 Early 2023"]
[White "Begunov, Konstantin"]
[Black "Yurovskykh, Oleksandr"]
[WhiteFideId "4118510"]
[BlackFideId "14134020"]
[WhiteElo "2443"]
[BlackElo "2576"]
[Result "0-1"]
[Round "6"]
[TimeControl "180+1"]
[Date "2023.08.22"]
[WhiteClock "0:00:00"]
[BlackClock "0:00:07"]
[Board "115"]

1. d4 {[%clk 0:03:00]}  d5 {[%clk 0:02:59]} 2. c4 {[%clk 0:03:01]}  dxc4 {[%clk 0:02:56]} 3. Nf3 {[%clk 0:03:00]}  Nf6 {[%clk 0:02:56]} 4. e3 {[%clk 0:03:00]}  e6 {[%clk 0:02:56]} 5. Bxc4 {[%clk 0:03:00]}  c5 {[%clk 0:02:57]} 6. Nc3 {[%clk 0:03:00]}  Nc6 {[%clk 0:02:57]} 7. O-O {[%clk 0:03:00]}  cxd4 {[%clk 0:02:57]} 8. exd4 {[%clk 0:02:52]}  Be7 {[%clk 0:02:57]} 9. Bg5 {[%clk 0:02:49]}  O-O {[%clk 0:02:56]} 10. Rc1 {[%clk 0:02:37]}  b6 {[%clk 0:02:51]} 11. Qd3 {[%clk 0:01:49]}  Nb4 {[%clk 0:02:45]} 12. Qe2 {[%clk 0:01:45]}  Bb7 {[%clk 0:02:42]} 13. Rfd1 {[%clk 0:01:44]}  Rc8 {[%clk 0:02:35]} 14. Ne5 {[%clk 0:01:39]}  Nbd5 {[%clk 0:02:25]} 15. Re1 {[%clk 0:01:28]}  Nxc3 {[%clk 0:02:21]} 16. bxc3 {[%clk 0:01:25]}  Nd5 {[%clk 0:02:15]} 17. Bd2 {[%clk 0:00:57]}  Bg5 {[%clk 0:01:36]} 18. Bd3 {[%clk 0:00:41]}  g6 {[%clk 0:01:04]} 19. Be4 {[%clk 0:00:24]}  Bxd2 {[%clk 0:00:57]} 20. Qxd2 {[%clk 0:00:25]}  Qc7 {[%clk 0:00:54]} 21. c4 {[%clk 0:00:24]}  Nf6 {[%clk 0:00:51]} 22. Bxb7 {[%clk 0:00:24]}  Qxb7 {[%clk 0:00:52]} 23. Qg5 {[%clk 0:00:22]}  Kg7 {[%clk 0:00:50]} 24. Re3 {[%clk 0:00:22]}  Nd7 {[%clk 0:00:34]} 25. Rh3 {[%clk 0:00:20]}  Nxe5 {[%clk 0:00:18]} 26. Qh6+ {[%clk 0:00:19]}  Kf6 {[%clk 0:00:19]} 27. Qh4+ {[%clk 0:00:18]}  g5 {[%clk 0:00:13]} 28. dxe5+ {[%clk 0:00:18]}  Ke7 {[%clk 0:00:12]} 29. Qxg5+ {[%clk 0:00:18]}  Kd7 {[%clk 0:00:12]} 30. Rxh7 {[%clk 0:00:16]}  Qe4 {[%clk 0:00:10]} 31. Qf6 {[%clk 0:00:15]}  Qxh7 {[%clk 0:00:10]} 32. Rd1+ {[%clk 0:00:13]}  Kc6 {[%clk 0:00:10]} 33. Qe7 {[%clk 0:00:13]}  Rfd8 {[%clk 0:00:07]} 34. Rd6+ {[%clk 0:00:08]}  Rxd6 {[%clk 0:00:07]} 35. Qxd6+ {[%clk 0:00:09]}  Kb7 {[%clk 0:00:07]} 36. g3 {[%clk 0:00:07]}  Qb1+ {[%clk 0:00:07]} 37. Kg2 {[%clk 0:00:07]}  Qe4+ {[%clk 0:00:07]} 38. Kg1 {[%clk 0:00:08]}  Qxc4 {[%clk 0:00:07]} 39. Qd7+ {[%clk 0:00:08]}  Rc7 {[%clk 0:00:08]} 40. Qd8 {[%clk 0:00:08]}  Qc1+ {[%clk 0:00:08]} 41. Kg2 {[%clk 0:00:08]}  Qc6+ {[%clk 0:00:09]} 42. Kh3 {[%clk 0:00:09]}  Qd5 {[%clk 0:00:10]} 43. Qf6 {[%clk 0:00:08]}  Qxa2 {[%clk 0:00:09]} 44. f4 {[%clk 0:00:06]}  Qe2 {[%clk 0:00:08]} 45. Qg5 {[%clk 0:00:00]}  a5 {[%clk 0:00:07]} 0-1


[Site "https://www.chess.com"]

[Event "Titled Tuesday Blitz August 22 Early 2023"]
[White "Zeck_CH"]
[Black "Martinez Reyes, Pedro Ramon"]
[BlackFideId "3901807"]
[WhiteElo "2428"]
[BlackElo "2553"]
[Result "0-1"]
[Round "6"]
[TimeControl "180+1"]
[Date "2023.08.22"]
[WhiteClock "0:00:00"]
[BlackClock "0:00:22"]
[Board "117"]

1. e4 {[%clk 0:02:59]}  c5 {[%clk 0:02:59]} 2. Nf3 {[%clk 0:02:59]}  Nc6 {[%clk 0:02:59]} 3. Bb5 {[%clk 0:02:59]}  g6 {[%clk 0:02:58]} 4. Bxc6 {[%clk 0:02:56]}  bxc6 {[%clk 0:02:58]} 5. O-O {[%clk 0:02:56]}  Bg7 {[%clk 0:02:58]} 6. Re1 {[%clk 0:02:57]}  Rb8 {[%clk 0:02:58]} 7. e5 {[%clk 0:02:48]}  Nh6 {[%clk 0:02:56]} 8. d4 {[%clk 0:02:43]}  cxd4 {[%clk 0:02:56]} 9. Qxd4 {[%clk 0:02:44]}  Qb6 {[%clk 0:02:46]} 10. Qe4 {[%clk 0:02:36]}  O-O {[%clk 0:02:43]} 11. b3 {[%clk 0:02:33]}  f5 {[%clk 0:02:38]} 12. Qc4+ {[%clk 0:02:28]}  e6 {[%clk 0:02:36]} 13. Ba3 {[%clk 0:02:25]}  Re8 {[%clk 0:02:36]} 14. Bd6 {[%clk 0:02:24]}  Ra8 {[%clk 0:02:36]} 15. Nc3 {[%clk 0:02:21]}  Ba6 {[%clk 0:02:35]} 16. Qf4 {[%clk 0:02:11]}  Nf7 {[%clk 0:02:30]} 17. Na4 {[%clk 0:02:10]}  Qd8 {[%clk 0:02:16]} 18. Ba3 {[%clk 0:02:06]}  g5 {[%clk 0:02:06]} 19. Qd4 {[%clk 0:02:00]}  g4 {[%clk 0:02:04]} 20. Nd2 {[%clk 0:01:59]}  d5 {[%clk 0:01:58]} 21. Nc5 {[%clk 0:01:54]}  Bc8 {[%clk 0:01:58]} 22. f4 {[%clk 0:01:54]}  gxf3 {[%clk 0:01:49]} 23. Nxf3 {[%clk 0:01:53]}  Ng5 {[%clk 0:01:45]} 24. Nxg5 {[%clk 0:01:42]}  Qxg5 {[%clk 0:01:46]} 25. Bc1 {[%clk 0:01:38]}  Qg4 {[%clk 0:01:38]} 26. Qxg4 {[%clk 0:01:29]}  fxg4 {[%clk 0:01:38]} 27. Bf4 {[%clk 0:01:27]}  a5 {[%clk 0:01:34]} 28. Rad1 {[%clk 0:01:21]}  Kf8 {[%clk 0:01:33]} 29. Rd3 {[%clk 0:01:16]}  Kg8 {[%clk 0:01:25]} 30. Rg3 {[%clk 0:01:14]}  h5 {[%clk 0:01:26]} 31. h3 {[%clk 0:01:13]}  Bf8 {[%clk 0:01:26]} 32. Nd3 {[%clk 0:01:08]}  Ba6 {[%clk 0:01:26]} 33. hxg4 {[%clk 0:01:07]}  h4 {[%clk 0:01:26]} 34. Rh3 {[%clk 0:01:05]}  Be7 {[%clk 0:01:25]} 35. g5 {[%clk 0:01:05]}  Kg7 {[%clk 0:01:24]} 36. Rxh4 {[%clk 0:01:01]}  Rh8 {[%clk 0:01:24]} 37. Rh6 {[%clk 0:01:00]}  Kf7 {[%clk 0:01:04]} 38. g3 {[%clk 0:00:38]}  Rag8 {[%clk 0:00:59]} 39. Rxh8 {[%clk 0:00:34]}  Rxh8 {[%clk 0:00:59]} 40. Nf2 {[%clk 0:00:32]}  Kg6 {[%clk 0:00:59]} 41. Kg2 {[%clk 0:00:29]}  Bxg5 {[%clk 0:00:59]} 42. Nh3 {[%clk 0:00:30]}  Be7 {[%clk 0:00:58]} 43. Bd2 {[%clk 0:00:27]}  a4 {[%clk 0:00:49]} 44. Nf4+ {[%clk 0:00:27]}  Kf5 {[%clk 0:00:50]} 45. Kf3 {[%clk 0:00:18]}  Rg8 {[%clk 0:00:39]} 46. Bc3 {[%clk 0:00:17]}  c5 {[%clk 0:00:37]} 47. Ba5 {[%clk 0:00:14]}  d4 {[%clk 0:00:37]} 48. Bc7 {[%clk 0:00:11]}  Bb7+ {[%clk 0:00:37]} 49. Kf2 {[%clk 0:00:12]}  Rh8 {[%clk 0:00:32]} 50. Ke2 {[%clk 0:00:07]}  Be4 {[%clk 0:00:26]} 51. Kd1 {[%clk 0:00:06]}  Rh2 {[%clk 0:00:26]} 52. Ne2 {[%clk 0:00:04]}  Bf3 {[%clk 0:00:25]} 53. Kd2 {[%clk 0:00:05]}  Bg5+ {[%clk 0:00:25]} 54. Kd3 {[%clk 0:00:04]}  Be4+ {[%clk 0:00:22]} 55. Kc4 {[%clk 0:00:04]}  Bd2 {[%clk 0:00:20]} 56. Rf1+ {[%clk 0:00:04]}  Kg4 {[%clk 0:00:20]} 57. Nf4 {[%clk 0:00:02]}  Be3 {[%clk 0:00:20]} 58. Kxc5 {[%clk 0:00:02]}  d3+ {[%clk 0:00:20]} 59. Kd6 {[%clk 0:00:03]}  dxc2 {[%clk 0:00:20]} 60. Ne2 {[%clk 0:00:03]}  Rxe2 {[%clk 0:00:20]} 61. Ba5 {[%clk 0:00:03]}  c1=Q {[%clk 0:00:19]} 62. Rxc1 {[%clk 0:00:03]}  Bxc1 {[%clk 0:00:20]} 63. b4 {[%clk 0:00:04]}  Bb2 {[%clk 0:00:20]} 64. Kxe6 {[%clk 0:00:05]}  Bf5+ {[%clk 0:00:20]} 65. Kd6 {[%clk 0:00:05]}  Rxe5 {[%clk 0:00:20]} 66. Kc6 {[%clk 0:00:06]}  Be4+ {[%clk 0:00:20]} 67. Kb6 {[%clk 0:00:06]}  Bd3 {[%clk 0:00:20]} 68. Kc6 {[%clk 0:00:06]}  Rb5 {[%clk 0:00:20]} 69. a3 {[%clk 0:00:06]}  Bxa3 {[%clk 0:00:20]} 70. Kd6 {[%clk 0:00:06]}  Bxb4+ {[%clk 0:00:21]} 71. Bxb4 {[%clk 0:00:00]}  Rxb4 {[%clk 0:00:22]} 0-1


[Site "https://www.chess.com"]

[Event "Titled Tuesday Blitz August 22 Early 2023"]
[White "Postlmayer, Jakob"]
[Black "Pershina, Elena"]
[WhiteFideId "1643622"]
[BlackFideId "24147516"]
[WhiteElo "2549"]
[BlackElo "2425"]
[Result "1-0"]
[Round "6"]
[TimeControl "180+1"]
[Date "2023.08.22"]
[WhiteClock "0:00:14"]
[BlackClock "0:00:00"]
[Board "118"]

1. c4 {[%clk 0:03:00]}  c6 {[%clk 0:02:57]} 2. Nf3 {[%clk 0:02:58]}  d5 {[%clk 0:02:58]} 3. e3 {[%clk 0:02:58]}  Nf6 {[%clk 0:02:58]} 4. Nc3 {[%clk 0:02:58]}  Bg4 {[%clk 0:02:46]} 5. cxd5 {[%clk 0:02:56]}  cxd5 {[%clk 0:02:44]} 6. Qb3 {[%clk 0:02:54]}  Bc8 {[%clk 0:02:15]} 7. d4 {[%clk 0:02:53]}  Nc6 {[%clk 0:02:11]} 8. Bd3 {[%clk 0:02:50]}  e6 {[%clk 0:02:08]} 9. Ne5 {[%clk 0:02:46]}  Nxe5 {[%clk 0:01:57]} 10. dxe5 {[%clk 0:02:47]}  Nd7 {[%clk 0:01:56]} 11. f4 {[%clk 0:02:47]}  Nc5 {[%clk 0:01:52]} 12. Bb5+ {[%clk 0:02:42]}  Bd7 {[%clk 0:01:51]} 13. Bxd7+ {[%clk 0:02:42]}  Qxd7 {[%clk 0:01:52]} 14. Qd1 {[%clk 0:02:41]}  Be7 {[%clk 0:01:48]} 15. O-O {[%clk 0:02:41]}  a5 {[%clk 0:01:42]} 16. Qe2 {[%clk 0:02:37]}  O-O {[%clk 0:01:40]} 17. Rd1 {[%clk 0:02:34]}  Rfd8 {[%clk 0:01:37]} 18. e4 {[%clk 0:02:26]}  d4 {[%clk 0:01:35]} 19. Be3 {[%clk 0:02:26]}  d3 {[%clk 0:01:26]} 20. Qf2 {[%clk 0:02:15]}  b6 {[%clk 0:01:23]} 21. Rd2 {[%clk 0:02:11]}  Qc6 {[%clk 0:01:20]} 22. Qf3 {[%clk 0:02:09]}  b5 {[%clk 0:01:08]} 23. Rc1 {[%clk 0:02:03]}  b4 {[%clk 0:00:41]} 24. Nd1 {[%clk 0:02:01]}  Qb5 {[%clk 0:00:27]} 25. Nf2 {[%clk 0:01:52]}  Rac8 {[%clk 0:00:25]} 26. g3 {[%clk 0:01:35]}  h6 {[%clk 0:00:23]} 27. Kg2 {[%clk 0:01:35]}  a4 {[%clk 0:00:18]} 28. Bxc5 {[%clk 0:01:29]}  Rxc5 {[%clk 0:00:16]} 29. Rxc5 {[%clk 0:01:28]}  Bxc5 {[%clk 0:00:16]} 30. Rxd3 {[%clk 0:01:27]}  Rc8 {[%clk 0:00:13]} 31. Nd1 {[%clk 0:01:12]}  Bb6 {[%clk 0:00:13]} 32. Qe2 {[%clk 0:01:09]}  Qc5 {[%clk 0:00:12]} 33. Ne3 {[%clk 0:01:08]}  Qc1 {[%clk 0:00:12]} 34. Nf1 {[%clk 0:01:02]}  Rc2 {[%clk 0:00:10]} 35. Rd2 {[%clk 0:01:02]}  b3 {[%clk 0:00:07]} 36. axb3 {[%clk 0:01:01]}  axb3 {[%clk 0:00:08]} 37. Kh3 {[%clk 0:00:38]}  Qxb2 {[%clk 0:00:08]} 38. Qb5 {[%clk 0:00:24]}  Rxd2 {[%clk 0:00:06]} 39. Nxd2 {[%clk 0:00:25]}  Qxd2 {[%clk 0:00:06]} 40. Qxb6 {[%clk 0:00:25]}  b2 {[%clk 0:00:05]} 41. f5 {[%clk 0:00:25]}  Qd1 {[%clk 0:00:02]} 42. Qxb2 {[%clk 0:00:23]}  Qf1+ {[%clk 0:00:02]} 43. Kg4 {[%clk 0:00:20]}  Qd1+ {[%clk 0:00:01]} 44. Kf4 {[%clk 0:00:18]}  Qf1+ {[%clk 0:00:01]} 45. Kg4 {[%clk 0:00:16]}  Qd1+ {[%clk 0:00:00]} 46. Kh4 {[%clk 0:00:14]} 1-0


[Site "https://www.chess.com"]

[Event "Titled Tuesday Blitz August 22 Early 2023"]
[White "Khromkin, Andrey"]
[Black "Nazaretyan, Tigran"]
[WhiteFideId "4154126"]
[BlackFideId "24162345"]
[WhiteElo "2418"]
[BlackElo "2534"]
[Result "1/2-1/2"]
[Round "6"]
[TimeControl "180+1"]
[Date "2023.08.22"]
[WhiteClock "0:00:04"]
[BlackClock "0:00:06"]
[Board "122"]

1. d4 {[%clk 0:02:59]}  Nf6 {[%clk 0:02:59]} 2. c4 {[%clk 0:03:00]}  c5 {[%clk 0:02:57]} 3. Nf3 {[%clk 0:03:00]}  cxd4 {[%clk 0:02:56]} 4. Nxd4 {[%clk 0:03:01]}  e5 {[%clk 0:02:56]} 5. Nb5 {[%clk 0:03:02]}  d5 {[%clk 0:02:54]} 6. cxd5 {[%clk 0:03:02]}  Bc5 {[%clk 0:02:53]} 7. N5c3 {[%clk 0:03:03]}  e4 {[%clk 0:02:52]} 8. g3 {[%clk 0:03:03]}  h5 {[%clk 0:02:51]} 9. Bg5 {[%clk 0:03:00]}  Qb6 {[%clk 0:02:45]} 10. e3 {[%clk 0:02:48]}  Qxb2 {[%clk 0:02:41]} 11. Bxf6 {[%clk 0:02:49]}  gxf6 {[%clk 0:02:40]} 12. Nxe4 {[%clk 0:02:28]}  Qxa1 {[%clk 0:02:28]} 13. Nxc5 {[%clk 0:02:27]}  Qxa2 {[%clk 0:02:25]} 14. Bb5+ {[%clk 0:02:22]}  Bd7 {[%clk 0:02:08]} 15. Bxd7+ {[%clk 0:02:13]}  Nxd7 {[%clk 0:02:07]} 16. Nxd7 {[%clk 0:02:14]}  Qa5+ {[%clk 0:02:04]} 17. Nd2 {[%clk 0:02:12]}  Kxd7 {[%clk 0:02:03]} 18. O-O {[%clk 0:02:09]}  Qxd5 {[%clk 0:02:03]} 19. Qa4+ {[%clk 0:02:04]}  b5 {[%clk 0:02:01]} 20. Qa1 {[%clk 0:01:59]}  h4 {[%clk 0:01:55]} 21. Rd1 {[%clk 0:01:55]}  hxg3 {[%clk 0:01:53]} 22. Ne4 {[%clk 0:01:53]}  gxf2+ {[%clk 0:01:43]} 23. Kxf2 {[%clk 0:01:41]}  Rxh2+ {[%clk 0:01:41]} 24. Kg3 {[%clk 0:01:39]}  Rh5 {[%clk 0:01:01]} 25. Rxd5+ {[%clk 0:01:31]}  Rxd5 {[%clk 0:01:00]} 26. Nxf6+ {[%clk 0:01:32]}  Ke6 {[%clk 0:01:00]} 27. Nxd5 {[%clk 0:01:32]}  Rg8+ {[%clk 0:01:00]} 28. Kf3 {[%clk 0:01:28]}  Kxd5 {[%clk 0:01:00]} 29. Qxa7 {[%clk 0:01:27]}  Ke6 {[%clk 0:00:57]} 30. Qb6+ {[%clk 0:01:26]}  Ke7 {[%clk 0:00:57]} 31. Qxb5 {[%clk 0:01:26]}  Rg6 {[%clk 0:00:57]} 32. Qe5+ {[%clk 0:01:22]}  Re6 {[%clk 0:00:56]} 33. Qc7+ {[%clk 0:01:16]}  Kf6 {[%clk 0:00:56]} 34. Kf4 {[%clk 0:01:15]}  Kg7 {[%clk 0:00:56]} 35. e4 {[%clk 0:01:14]}  Kg6 {[%clk 0:00:54]} 36. e5 {[%clk 0:01:13]}  Kg7 {[%clk 0:00:53]} 37. Kf5 {[%clk 0:01:03]}  Rh6 {[%clk 0:00:50]} 38. Qd8 {[%clk 0:01:00]}  Rh5+ {[%clk 0:00:49]} 39. Kf4 {[%clk 0:01:00]}  Rh6 {[%clk 0:00:49]} 40. Kg5 {[%clk 0:00:55]}  Rg6+ {[%clk 0:00:47]} 41. Kf5 {[%clk 0:00:54]}  Re6 {[%clk 0:00:47]} 42. Qd4 {[%clk 0:00:29]}  Kg8 {[%clk 0:00:39]} 43. Qg4+ {[%clk 0:00:20]}  Kf8 {[%clk 0:00:34]} 44. Qh5 {[%clk 0:00:20]}  Kg7 {[%clk 0:00:33]} 45. Qg5+ {[%clk 0:00:20]}  Rg6 {[%clk 0:00:31]} 46. Qe7 {[%clk 0:00:19]}  Rh6 {[%clk 0:00:28]} 47. Kg5 {[%clk 0:00:17]}  Rg6+ {[%clk 0:00:27]} 48. Kf5 {[%clk 0:00:17]}  Rh6 {[%clk 0:00:27]} 49. Ke4 {[%clk 0:00:16]}  Re6 {[%clk 0:00:25]} 50. Qg5+ {[%clk 0:00:16]}  Rg6 {[%clk 0:00:25]} 51. Qf5 {[%clk 0:00:16]}  Rh6 {[%clk 0:00:24]} 52. Kd5 {[%clk 0:00:16]}  Rg6 {[%clk 0:00:23]} 53. Qf4 {[%clk 0:00:14]}  Rh6 {[%clk 0:00:22]} 54. Qg5+ {[%clk 0:00:13]}  Rg6 {[%clk 0:00:22]} 55. Qe7 {[%clk 0:00:14]}  Rh6 {[%clk 0:00:21]} 56. Qb4 {[%clk 0:00:11]}  Rg6 {[%clk 0:00:20]} 57. Qd4 {[%clk 0:00:11]}  Re6 {[%clk 0:00:19]} 58. Qc3 {[%clk 0:00:10]}  Kg8 {[%clk 0:00:18]} 59. Qh3 {[%clk 0:00:08]}  Rg6 {[%clk 0:00:17]} 60. Qh5 {[%clk 0:00:07]}  Kg7 {[%clk 0:00:17]} 61. Qf5 {[%clk 0:00:07]}  Rh6 {[%clk 0:00:16]} 62. Ke4 {[%clk 0:00:05]}  Rg6 {[%clk 0:00:16]} 63. Kf4 {[%clk 0:00:05]}  Rh6 {[%clk 0:00:15]} 64. Qg5+ {[%clk 0:00:05]}  Rg6 {[%clk 0:00:15]} 65. Qe7 {[%clk 0:00:05]}  Rh6 {[%clk 0:00:12]} 66. Qd7 {[%clk 0:00:06]}  Rg6 {[%clk 0:00:12]} 67. Kf5 {[%clk 0:00:06]}  Rh6 {[%clk 0:00:12]} 68. Qe7 {[%clk 0:00:06]}  Rh5+ {[%clk 0:00:12]} 69. Ke4 {[%clk 0:00:06]}  Rh6 {[%clk 0:00:12]} 70. Kd5 {[%clk 0:00:06]}  Rg6 {[%clk 0:00:12]} 71. Qh4 {[%clk 0:00:05]}  Rh6 {[%clk 0:00:11]} 72. Qf4 {[%clk 0:00:04]}  Rg6 {[%clk 0:00:11]} 73. Qf5 {[%clk 0:00:04]}  Rh6 {[%clk 0:00:10]} 74. Qc8 {[%clk 0:00:03]}  Rg6 {[%clk 0:00:10]} 75. Qh3 {[%clk 0:00:03]}  Rh6 {[%clk 0:00:10]} 76. Qc3 {[%clk 0:00:03]}  Kg8 {[%clk 0:00:08]} 77. Qc8+ {[%clk 0:00:02]}  Kg7 {[%clk 0:00:08]} 78. Qg4+ {[%clk 0:00:03]}  Rg6 {[%clk 0:00:08]} 79. Qf4 {[%clk 0:00:03]}  Kg8 {[%clk 0:00:08]} 80. Qd4 {[%clk 0:00:04]}  Rh6 {[%clk 0:00:07]} 81. Kc5 {[%clk 0:00:02]}  Rg6 {[%clk 0:00:07]} 82. Qd8+ {[%clk 0:00:03]}  Kg7 {[%clk 0:00:07]} 83. Kd5 {[%clk 0:00:03]}  Re6 {[%clk 0:00:06]} 84. Qh4 {[%clk 0:00:04]}  Rg6 {[%clk 0:00:06]} 85. Qh3 {[%clk 0:00:03]}  Rh6 {[%clk 0:00:06]} 86. Qf5 {[%clk 0:00:04]} 1/2-1/2


[Site "https://www.chess.com"]